fUSD/lending_fUSD_20250119
["ID","MTS","AMOUNT","RATE_DAILY","PERIOD"]
[349619200,1737329463745,-500.0,0.00021663,2]
[349619201,1737329463755,-172.68611027,0.00021663,2]
[349619202,1737329464017,-327.31388973,0.00021663,2]
[349619203,1737329464028,-556.85183462,0.00021663,2]
[349619204,1737329464044,-151.0,0.00021663,2]
[349619205,1737329464055,-500.0,0.00021663,2]
[349619206,1737329464066,-543.97098531,0.00021663,2]
[349619207,1737329464076,-500.0,0.00021663,2]
[349619208,1737329464086,-151.0,0.00021663,2]
[349619209,1737329464096,-500.0,0.00021663,2]
[349619210,1737329464106,-500.0,0.00021663,2]
[349619211,1737329464116,-500.0,0.00021663,2]
[349619212,1737329464126,-500.0,0.00021664,2]
[349619213,1737329464135,-500.0,0.00021664,2]
[349619214,1737329464144,-500.0,0.00021664,2]
[349619215,1737329464154,-500.0,0.00021664,2]
[349619216,1737329464164,-500.0,0.00021664,2]
[349619217,1737329464173,-270.71235617,0.00021664,2]
[349619218,1737329464183,-500.0,0.00021664,2]
[349619219,1737329464193,-500.0,0.00021664,2]
[349619220,1737329464202,-500.0,0.00021664,2]
[349619221,1737329464212,-500.0,0.00021664,2]
[349619222,1737329464221,-500.0,0.00021664,2]
[349619223,1737329464232,-500.0,0.00021664,2]
[349619224,1737329464241,-500.0,0.00021664,2]
[349619225,1737329464251,-500.0,0.00021664,2]
[349619226,1737329464261,-500.0,0.00021664,2]
[349619227,1737329464271,-255.90348934,0.00021664,2]
[349619228,1737329464289,-500.0,0.00021664,2]
[349619229,1737329464299,-500.0,0.00021664,2]
[349619230,1737329464308,-500.0,0.00021665,2]
[349619231,1737329464318,-500.0,0.00021665,2]
[349619232,1737329464328,-160.02905611,0.00021665,2]
[349619233,1737329464338,-1000.0,0.00021727,2]
[349619234,1737329464347,-150.0,0.00021728,2]
[349619235,1737329464358,-150.0,0.00021732,2]
[349619236,1737329464368,-150.0,0.00021739,2]
[349619237,1737329464378,-150.0,0.00021739,2]
[349619238,1737329464389,-150.0,0.00021744,2]
[349619239,1737329464399,-1766.28,0.00021754,2]
[349619240,1737329464408,-150.0,0.00021756,2]
[349619241,1737329464418,-150.0,0.00021757,2]
[349619242,1737329464428,-1000.0,0.00021758,2]
[349619243,1737329464449,-3235.06401258,0.00021762,3]
[349619244,1737329464467,-150.0,0.00021763,2]
[349619245,1737329464488,-150.0,0.00021765,2]
[349619246,1737329464509,-300.0,0.00021765,2]
[349619247,1737329464525,-150.0,0.00021765,2]
[349619248,1737329464549,-150.0,0.00021768,2]
[349619249,1737329464570,-150.0,0.00021771,2]
[349619250,1737329464591,-171.91,0.00021772,2]
[349619251,1737329464609,-1000.0,0.00021774,2]
[349619252,1737329464628,-167.37,0.00021775,2]
[349619253,1737329464648,-150.0,0.00021776,2]
[349619254,1737329464663,-150.0,0.00021777,2]
[349619255,1737329464684,-1000.0,0.00021779,2]
[349619256,1737329464697,-150.0,0.0002178,2]
[349619257,1737329464715,-3000.0,0.0002178,2]
[349619258,1737329464730,-150.0,0.00021782,2]
[349619259,1737329464745,-150.0,0.00021785,2]
[349619260,1737329464763,-2342.07217328,0.00021787,2]
[349619261,1737329464780,-150.0,0.0002179,2]
[349619262,1737329464800,-150.0,0.00021791,2]
[349619263,1737329464817,-150.0,0.00021793,2]
[349619264,1737329464833,-150.0,0.00021794,2]
[349619265,1737329464849,-150.0,0.00021794,2]
[349619266,1737329464865,-150.0,0.00021803,2]
[349619267,1737329464880,-150.0,0.00021806,2]
[349619268,1737329464895,-150.0,0.00021811,2]
[349619269,1737329464910,-421.7797397,0.00021811,2]
[349619270,1737329464924,-1000.0,0.00021812,2]
[349619271,1737329464939,-1000.0,0.00021821,2]
[349619272,1737329464955,-500.0,0.00021824,2]
[349619273,1737329464971,-150.0,0.00021825,2]
[349619274,1737329464987,-150.0,0.00021834,2]
[349619275,1737329465003,-150.0,0.00021839,2]
[349619276,1737329465020,-150.0,0.00021852,2]
[349619277,1737329465041,-150.0,0.00021853,2]
[349619278,1737329465058,-500.0,0.00021854,2]
[349619279,1737329465068,-1000.0,0.00021856,2]
[349619280,1737329465080,-150.0,0.00021857,2]
[349619281,1737329465090,-150.0,0.00021858,2]
[349619282,1737329465100,-500.0,0.00021858,2]
[349619283,1737329465110,-500.0,0.00021858,2]
[349619284,1737329465121,-261.76,0.00021858,2]
[349619285,1737329465132,-500.0,0.00021858,2]
[349619286,1737329465142,-646.06,0.00021858,2]
[349619287,1737329465153,-150.0,0.00021859,2]
[349619288,1737329465164,-201.01,0.00021861,2]
[349619289,1737329465174,-150.0,0.00021863,2]
[349619290,1737329465185,-150.0,0.00021864,2]
[349619291,1737329465197,-150.0,0.00021868,2]
[349619292,1737329465207,-150.0,0.00021872,2]
[349619293,1737329465218,-150.0,0.00021874,2]
[349619294,1737329465230,-150.0,0.00021874,2]
[349619295,1737329465240,-150.0,0.00021877,2]
[349619296,1737329465249,-150.0,0.00021878,2]
[349619297,1737329465259,-150.0,0.00021882,2]
[349619298,1737329465272,-151.0,0.00021882,2]
[349619299,1737329465282,-500.0,0.00021883,2]
[349619300,1737329465297,-2028.99,0.00021883,2]
[349619301,1737329465307,-1481.91,0.00021883,2]
[349619302,1737329465317,-529.44,0.00021883,2]
[349619303,1737329465327,-1048.91,0.00021883,2]
[349619304,1737329465337,-881.61,0.00021883,2]
[349619305,1737329465347,-1546.46,0.00021883,2]
[349619306,1737329465357,-1692.57,0.00021883,2]
[349619307,1737329465641,-500.0,0.00021883,2]
[349619308,1737329465663,-1047.5,0.00021883,2]
[349619309,1737329465676,-500.0,0.00021883,2]
[349619310,1737329465688,-678.12,0.00021883,2]
[349619311,1737329465699,-2874.64,0.00021883,2]
[349619312,1737329465710,-912.14,0.00021883,2]
[349619313,1737329465722,-1839.2,0.00021883,2]
[349619314,1737329465733,-500.0,0.00021883,2]
[349619315,1737329465743,-993.24,0.00021883,2]
[349619316,1737329465753,-500.0,0.00021883,2]
[349619317,1737329465763,-783.73,0.00021883,2]
[349619318,1737329465773,-895.88,0.00021883,2]
[349619319,1737329465783,-500.0,0.00021883,2]
[349619320,1737329465799,-500.0,0.00021884,2]
[349619321,1737329465809,-500.0,0.00021884,2]
[349619322,1737329465818,-503.51,0.00021884,2]
[349619323,1737329465828,-500.0,0.00021884,2]
[349619324,1737329465838,-500.0,0.00021884,2]
[349619325,1737329465848,-500.0,0.00021884,2]
[349619326,1737329465858,-500.0,0.00021884,2]
[349619327,1737329465868,-500.0,0.00021884,2]
[349619328,1737329465877,-500.0,0.00021884,2]
[349619329,1737329465887,-500.0,0.00021884,2]
[349619330,1737329465896,-500.0,0.00021884,2]
[349619331,1737329465906,-500.0,0.00021884,2]
[349619332,1737329465916,-500.0,0.00021884,2]
[349619333,1737329465926,-500.0,0.00021884,2]
[349619334,1737329465936,-242.16,0.00021884,2]
[349619335,1737329465945,-500.0,0.00021884,2]
[349619336,1737329465955,-500.0,0.00021884,2]
[349619337,1737329465964,-500.0,0.00021884,2]
[349619338,1737329465975,-558.61,0.00021884,2]
[349619339,1737329465985,-500.0,0.00021884,2]
[349619340,1737329465995,-500.0,0.00021884,2]
[349619341,1737329466005,-252.6,0.00021884,2]
[349619342,1737329466015,-500.0,0.00021884,2]
[349619343,1737329466025,-522.94,0.00021884,2]
[349619344,1737329466035,-500.0,0.00021884,2]
[349619345,1737329466052,-500.0,0.00021884,2]
[349619346,1737329466062,-500.0,0.00021884,2]
[349619347,1737329466072,-500.0,0.00021884,2]
[349619348,1737329466082,-500.0,0.00021884,2]
[349619349,1737329466092,-532.25,0.00021884,2]
[349619350,1737329466102,-151.0,0.00021884,2]
[349619351,1737329466112,-1531.9,0.00021884,2]
[349619352,1737329466122,-500.0,0.00021884,2]
[349619353,1737329466132,-739.68,0.00021884,2]
[349619354,1737329466142,-500.0,0.00021884,2]
[349619355,1737329466151,-518.97,0.00021884,2]
[349619356,1737329466162,-667.03,0.00021884,2]
[349619357,1737329466171,-500.0,0.00021884,2]
[349619358,1737329466181,-542.63129,0.00021884,2]
[349619359,1737329466191,-2536.05,0.00021884,2]
[349619360,1737329466200,-500.0,0.00021884,2]
[349619361,1737329466210,-160.900393,0.00021884,2]
[349619362,1737329466220,-1170.24,0.00021884,2]
[349619363,1737329466231,-2808.0,0.00021884,2]
[349619364,1737329466241,-500.0,0.00021884,2]
[349619365,1737329466251,-500.0,0.00021884,2]
[349619366,1737329466261,-648.48829,0.00021884,2]
[349619367,1737329466270,-500.0,0.00021884,2]
[349619368,1737329466284,-500.0,0.00021884,2]
[349619369,1737329466300,-896.3,0.00021884,2]
[349619370,1737329466310,-500.0,0.00021884,2]
[349619371,1737329466320,-500.0,0.00021884,2]
[349619372,1737329466330,-500.0,0.00021884,2]
[349619373,1737329466340,-1124.05,0.00021884,2]
[349619374,1737329466350,-556.15,0.00021884,2]
[349619375,1737329466360,-500.0,0.00021884,2]
[349619376,1737329466370,-500.0,0.00021884,2]
[349619377,1737329466381,-558.8,0.00021884,2]
[349619378,1737329466391,-500.0,0.00021884,2]
[349619379,1737329466401,-2589.86,0.00021884,2]
[349619380,1737329466411,-511.79,0.00021884,2]
[349619381,1737329466421,-798.41,0.00021884,2]
[349619382,1737329466432,-500.0,0.00021884,2]
[349619383,1737329466442,-500.0,0.00021884,2]
[349619384,1737329466452,-633.14,0.00021884,2]
[349619385,1737329466462,-3853.1,0.00021884,2]
[349619386,1737329466473,-758.47,0.00021884,2]
[349619387,1737329466485,-500.0,0.00021884,2]
[349619388,1737329466497,-984.81,0.00021884,2]
[349619389,1737329466508,-3472.01,0.00021884,2]
[349619390,1737329466517,-500.0,0.00021884,2]
[349619391,1737329466528,-510.86,0.00021884,2]
[349619392,1737329466545,-1237.2,0.00021884,2]
[349619393,1737329466555,-500.0,0.00021884,2]
[349619394,1737329466566,-1576.81,0.00021884,2]
[349619395,1737329466576,-500.0,0.00021885,2]
[349619396,1737329466587,-500.0,0.00021885,2]
[349619397,1737329466598,-500.0,0.00021885,2]
[349619398,1737329466609,-303.48,0.00021885,2]
[349619399,1737329466619,-500.0,0.00021885,2]
[349619400,1737329466630,-500.0,0.00021885,2]
[349619401,1737329466641,-500.0,0.00021885,2]
[349619402,1737329466650,-500.0,0.00021885,2]
[349619403,1737329466661,-500.0,0.00021885,2]
[349619404,1737329466671,-150.0,0.00021885,2]
[349619405,1737329466681,-500.0,0.00021885,2]
[349619406,1737329466691,-500.0,0.00021885,2]
[349619407,1737329466701,-500.0,0.00021885,2]
[349619408,1737329466710,-551.64,0.00021885,2]
[349619409,1737329466719,-150.0,0.0002189,2]
[349619410,1737329466729,-150.0,0.00021892,2]
[349619411,1737329466739,-150.0,0.00021896,2]
[349619412,1737329466749,-151.0,0.00021899,2]
[349619413,1737329466758,-6791.2877,0.00021899,2]
[349619414,1737329466768,-1294.0,0.000219,2]
[349619415,1737329466778,-174.71650596,0.000219,2]
[349619416,1737329466795,-150.0,0.000219,2]
[349619417,1737329466805,-1000.0,0.000219,2]
[349619418,1737329466815,-157.96878904,0.000219,2]
[349619419,1737329466826,-3889.9147889,0.000219,2]
[349619420,1737329466837,-3235.06401258,0.000219,3]
[349619421,1737329466848,-150.0,0.00021906,2]
[349619422,1737329466858,-150.0,0.00021907,2]
[349619423,1737329466868,-150.0,0.00021908,2]
[349619424,1737329466878,-150.0,0.00021909,2]
[349619425,1737329466891,-150.0,0.00021915,2]
[349619426,1737329466902,-150.0,0.00021915,2]
[349619427,1737329466913,-500.0,0.00021917,2]
[349619428,1737329466923,-500.0,0.00021917,2]
[349619429,1737329466934,-500.0,0.00021917,2]
[349619430,1737329466945,-500.0,0.00021917,2]
[349619431,1737329466956,-500.0,0.00021917,2]
[349619432,1737329466966,-500.0,0.00021917,2]
[349619433,1737329466977,-500.0,0.00021917,2]
[349619434,1737329466987,-500.0,0.00021917,2]
[349619435,1737329466998,-4000.0,0.00021918,2]
[349619436,1737329467008,-150.0,0.00021918,2]
[349619437,1737329467019,-150.0,0.00021921,2]
[349619438,1737329467029,-150.0,0.00021925,2]
[349619439,1737329467046,-150.0,0.0002193,2]
[349619440,1737329467056,-150.0,0.00021931,2]
[349619441,1737329467067,-150.0,0.00021932,2]
[349619442,1737329467077,-500.0,0.00021935,2]
[349619443,1737329467087,-500.0,0.00021935,2]
[349619444,1737329467098,-500.0,0.00021936,2]
[349619445,1737329467108,-569.27,0.00021936,2]
[349619446,1737329467118,-150.0,0.00021936,2]
[349619447,1737329467128,-150.0,0.00021936,2]
[349619448,1737329467138,-500.0,0.00021936,2]
[349619449,1737329467148,-291.2,0.00021936,2]
[349619450,1737329467157,-374.64,0.00021936,2]
[349619451,1737329467168,-500.0,0.00021936,2]
[349619452,1737329467177,-500.0,0.00021936,2]
[349619453,1737329467187,-500.0,0.00021936,2]
[349619454,1737329467197,-500.0,0.00021936,2]
[349619455,1737329467207,-500.0,0.00021936,2]
[349619456,1737329467217,-500.0,0.00021936,2]
[349619457,1737329467227,-500.0,0.00021936,2]
[349619458,1737329467240,-500.0,0.00021936,2]
[349619459,1737329467249,-500.0,0.00021936,2]
[349619460,1737329467259,-500.0,0.00021936,2]
[349619461,1737329467268,-500.0,0.00021936,2]
[349619462,1737329467280,-500.0,0.00021936,2]
[349619463,1737329467294,-500.0,0.00021936,2]
[349619464,1737329467303,-923.42,0.00021936,2]
[349619465,1737329467312,-564.73,0.00021936,2]
[349619466,1737329467321,-500.0,0.00021936,2]
[349619467,1737329467330,-500.0,0.00021936,2]
[349619468,1737329467340,-508.31,0.00021936,2]
[349619469,1737329467350,-500.0,0.00021936,2]
[349619470,1737329467360,-500.0,0.00021936,2]
[349619471,1737329467370,-601.59,0.00021936,2]
[349619472,1737329467380,-500.0,0.00021936,2]
[349619473,1737329467389,-500.0,0.00021936,2]
[349619474,1737329467398,-564.0,0.00021936,2]
[349619475,1737329467408,-500.0,0.00021936,2]
[349619476,1737329467417,-813.74,0.00021936,2]
[349619477,1737329467426,-500.0,0.00021936,2]
[349619478,1737329467437,-663.42,0.00021936,2]
[349619479,1737329467446,-500.0,0.00021936,2]
[349619480,1737329467455,-500.0,0.00021937,2]
[349619481,1737329467465,-500.0,0.00021937,2]
[349619482,1737329467476,-500.0,0.00021937,2]
[349619483,1737329467485,-500.0,0.00021937,2]
[349619484,1737329467495,-500.0,0.00021937,2]
[349619485,1737329467506,-251.31228385,0.00021937,2]
[349619486,1737329467515,-500.0,0.00021937,2]
[349619487,1737329467525,-500.0,0.00021937,2]
[349619488,1737329467535,-500.0,0.00021937,2]
[349619489,1737329467551,-500.0,0.00021937,2]
[349619490,1737329467560,-500.0,0.00021937,2]
[349619491,1737329467570,-500.0,0.00021937,2]
[349619492,1737329467580,-500.0,0.00021937,2]
[349619493,1737329467590,-500.0,0.00021937,2]
[349619494,1737329467600,-500.0,0.00021937,2]
[349619495,1737329467610,-500.0,0.00021937,2]
[349619496,1737329467620,-500.0,0.00021937,2]
[349619497,1737329467629,-500.0,0.00021937,2]
[349619498,1737329467639,-500.0,0.00021937,2]
[349619499,1737329467649,-500.0,0.00021937,2]
[349619500,1737329467659,-500.0,0.00021937,2]
[349619501,1737329467669,-500.0,0.00021937,2]
[349619502,1737329467679,-500.0,0.00021937,2]
[349619503,1737329467689,-500.0,0.00021937,2]
[349619504,1737329467700,-500.0,0.00021937,2]
[349619505,1737329467710,-500.0,0.00021937,2]
[349619506,1737329467720,-500.0,0.00021937,2]
[349619507,1737329467730,-632.92,0.00021937,2]
[349619508,1737329467739,-500.0,0.00021937,2]
[349619509,1737329467749,-509.37264856,0.00021937,2]
[349619510,1737329467758,-505.54725041,0.00021937,2]
[349619511,1737329467767,-244.78824663,0.00021937,2]
[349619512,1737329467786,-316.68636999,0.00021335,2]
[349619513,1737329468190,-637.780605,0.00014812,2]
[349619514,1737329468199,-1378.233395,0.00019734,2]
[349619515,1737329468211,-113.626605,0.00019734,2]
[349619516,1737329468220,-500.0,0.00020514,2]
[349619517,1737329468231,-500.0,0.00020566,2]
[349619518,1737329468240,-7.51944499,0.00020566,2]
[349619519,1737329468251,-492.48055501,0.00020566,2]
[349619520,1737329468261,-500.0,0.0002084,2]
[349619521,1737329468270,-14.01944499,0.00020841,2]
[349619522,1737329468286,-485.98055501,0.00020841,2]
[349619523,1737329468302,-500.0,0.00020841,2]
[349619524,1737329468312,-500.0,0.00020841,2]
[349619525,1737329468431,-341.48176619,0.00021114,2]
[349619526,1737329468444,-158.51823381,0.00021114,2]
[349619527,1737329468454,-650.21053946,0.00021214,2]
[349619528,1737329468463,-2480.63363001,0.00021335,2]
[349619529,1737329468473,-500.0,0.00021388,2]
[349619530,1737329468482,-1216.783,0.00021454,2]
[349619531,1737329468491,-2797.32,0.00021609,2]
[349619532,1737329468501,-1258.69474088,0.00021883,2]
[349619533,1737329468513,-1538.62525912,0.00021883,2]
[349619534,1737329468523,-700.36642427,0.000219,2]
[349619535,1737329468535,-3718.26110583,0.000219,2]
[349619536,1737329468552,-262.73730736,0.00021937,2]
[349619537,1737329468561,-429.30298277,0.00021937,2]
[349619538,1737329468572,-458.44249826,0.00021937,2]
[349619539,1737329468582,-131.25610578,0.00021937,2]
[349619540,1737329468594,-375.14437716,0.00021937,2]
[349619541,1737329468604,-245.45757391,0.00021937,2]
[349619542,1737329468618,-254.54242609,0.00021937,2]
[349619543,1737329468628,-500.0,0.00021937,2]
[349619544,1737329468637,-198.24941391,0.00021937,2]
[349619545,1737329468655,-328.42446369,0.00021937,2]
[349619546,1737329468665,-505.60848681,0.00021937,2]
[349619547,1737329468674,-500.0,0.00021937,2]
[349619548,1737329468684,-500.0,0.00021937,2]
[349619549,1737329468693,-284.96129862,0.00021937,2]
[349619550,1737329468702,-509.56886239,0.00021937,2]
[349619551,1737329468711,-500.0,0.00021937,2]
[349619552,1737329468720,-500.0,0.00021937,2]
[349619553,1737329468730,-507.50042336,0.00021937,2]
[349619554,1737329468739,-500.0,0.00021937,2]
[349619555,1737329468749,-500.0,0.00021937,2]
[349619556,1737329468758,-500.0,0.00021937,2]
[349619557,1737329468767,-500.0,0.00021937,2]
[349619558,1737329468776,-500.0,0.00021937,2]
[349619559,1737329468787,-500.0,0.00021937,2]
[349619560,1737329468802,-423.66024233,0.00021937,2]
[349619561,1737329468812,-500.0,0.00021937,2]
[349619562,1737329468823,-205.64702266,0.00021937,2]
[349619563,1737329468833,-397.09773701,0.00021937,2]
[349619564,1737329468843,-640.97464923,0.00021937,2]
[349619565,1737329468853,-500.0,0.00021937,2]
[349619566,1737329468863,-341.05885066,0.00021937,2]
[349619567,1737329468874,-338.35049807,0.00021937,2]
[349619568,1737329468884,-597.68,0.00021937,2]
[349619569,1737329468894,-297.09140685,0.00021937,2]
[349619570,1737329468907,-202.90859315,0.00021937,2]
[349619571,1737329468918,-462.27125766,0.00021937,2]
[349619572,1737329468932,-71.86489479,0.00021937,2]
[349619573,1737329468942,-500.0,0.00021937,2]
[349619574,1737329468953,-500.0,0.00021937,2]
[349619575,1737329468964,-500.0,0.00021937,2]
[349619576,1737329468974,-500.0,0.00021937,2]
[349619577,1737329468984,-500.0,0.00021937,2]
[349619578,1737329468995,-500.0,0.00021937,2]
[349619579,1737329469006,-500.0,0.00021937,2]
[349619580,1737329469017,-327.50616834,0.00021937,2]
[349619581,1737329469028,-500.0,0.00021937,2]
[349619582,1737329469038,-500.0,0.00021937,2]
[349619583,1737329469058,-500.0,0.00021937,2]
[349619584,1737329469068,-500.0,0.00021937,2]
[349619585,1737329469081,-500.0,0.00021937,2]
[349619586,1737329469092,-500.0,0.00021937,2]
[349619587,1737329469102,-500.0,0.00021937,2]
[349619588,1737329469112,-500.0,0.00021937,2]
[349619589,1737329469122,-2670.61,0.00021937,2]
[349619590,1737329469132,-500.0,0.00021937,2]
[349619591,1737329469141,-500.0,0.00021937,2]
[349619592,1737329469151,-500.0,0.00021937,2]
[349619593,1737329469160,-500.0,0.00021937,2]
[349619594,1737329469170,-523.1,0.00021937,2]
[349619595,1737329469180,-1292.83,0.00021937,2]
[349619596,1737329469190,-1387.11,0.00021937,2]
[349619597,1737329469199,-500.0,0.00021937,2]
[349619598,1737329469208,-500.0,0.00021937,2]
[349619599,1737329469218,-240.67253139,0.00021937,2]
[349619600,1737329469229,-500.0,0.00021937,2]
[349619601,1737329469243,-500.0,0.00021937,2]
[349619602,1737329469253,-500.0,0.00021937,2]
[349619603,1737329469262,-564.2,0.00021937,2]
[349619604,1737329469272,-500.0,0.00021937,2]
[349619605,1737329469284,-500.0,0.00021937,2]
[349619606,1737329469301,-500.0,0.00021937,2]
[349619607,1737329469311,-500.0,0.00021937,2]
[349619608,1737329469320,-500.0,0.00021937,2]
[349619609,1737329469331,-500.0,0.00021937,2]
[349619610,1737329469342,-500.0,0.00021937,2]
[349619611,1737329469351,-500.0,0.00021937,2]
[349619612,1737329469362,-500.0,0.00021937,2]
[349619613,1737329469373,-500.0,0.00021937,2]
[349619614,1737329469383,-500.0,0.00021937,2]
[349619615,1737329469394,-500.0,0.00021937,2]
[349619616,1737329469403,-500.0,0.00021937,2]
[349619617,1737329469413,-500.0,0.00021937,2]
[349619618,1737329469423,-500.0,0.00021937,2]
[349619619,1737329469433,-500.0,0.00021937,2]
[349619620,1737329469443,-500.0,0.00021937,2]
[349619621,1737329469452,-500.0,0.00021937,2]
[349619622,1737329469462,-613.51,0.00021937,2]
[349619623,1737329469471,-500.0,0.00021937,2]
[349619624,1737329469480,-500.0,0.00021937,2]
[349619625,1737329469490,-284.06431727,0.00021937,2]
[349619626,1737329469499,-500.0,0.00021937,2]
[349619627,1737329469509,-500.0,0.00021937,2]
[349619628,1737329469519,-500.0,0.00021937,2]
[349619629,1737329469528,-500.0,0.00021937,2]
[349619630,1737329469538,-500.0,0.00021937,2]
[349619631,1737329469553,-500.0,0.00021937,2]
[349619632,1737329469563,-500.0,0.00021937,2]
[349619633,1737329469572,-500.0,0.00021937,2]
[349619634,1737329469581,-500.0,0.00021938,2]
[349619635,1737329469592,-500.0,0.00021938,2]
[349619636,1737329469601,-648.59741008,0.00021938,2]
[349619637,1737329469611,-500.0,0.00021938,2]
[349619638,1737329469620,-500.0,0.00021938,2]
[349619639,1737329469630,-500.0,0.00021938,2]
[349619640,1737329469639,-502.21213634,0.00021938,2]
[349619641,1737329469653,-500.0,0.00021938,2]
[349619642,1737329469663,-500.0,0.00021938,2]
[349619643,1737329469672,-500.0,0.00021938,2]
[349619644,1737329469682,-500.0,0.00021938,2]
[349619645,1737329469692,-500.0,0.00021938,2]
[349619646,1737329469702,-500.0,0.00021939,2]
[349619647,1737329469712,-500.0,0.00021939,2]
[349619648,1737329469723,-150.0,0.00021941,2]
[349619649,1737329469734,-151.24758829,0.00021944,2]
[349619650,1737329469743,-150.0,0.00021945,2]
[349619651,1737329469753,-150.0,0.00021946,2]
[349619652,1737329469762,-150.0,0.00021948,2]
[349619653,1737329469772,-150.0,0.00021953,2]
[349619654,1737329469780,-201.0,0.00021957,2]
[349619655,1737329469790,-150.0,0.00021958,2]
[349619656,1737329469805,-150.0,0.00021958,2]
[349619657,1737329469814,-1000.0,0.0002196,2]
[349619658,1737329469824,-150.0,0.00021962,2]
[349619659,1737329469833,-1000.0,0.00021962,2]
[349619660,1737329469843,-150.0,0.0002197,2]
[349619661,1737329469852,-150.0,0.00021972,2]
[349619662,1737329469861,-358.28639095,0.00021973,2]
[349619663,1737329469870,-1000.0,0.00021978,2]
[349619664,1737329469880,-150.0,0.00021978,2]
[349619665,1737329469889,-150.0,0.00021979,2]
[349619666,1737329469898,-150.0,0.0002198,2]
[349619667,1737329469908,-150.0,0.0002198,2]
[349619668,1737329469917,-150.0,0.00021982,2]
[349619669,1737329469926,-150.0,0.00021984,2]
[349619670,1737329469936,-992.5788782,0.00021985,2]
[349619671,1737329469945,-992.5788782,0.00021985,2]
[349619672,1737329469954,-992.5788782,0.00021985,2]
[349619673,1737329469963,-992.5788782,0.00021985,2]
[349619674,1737329469971,-992.5788782,0.00021985,2]
[349619675,1737329469981,-504.7205971,0.00021985,2]
[349619676,1737329469991,-504.7205971,0.00021985,2]
[349619677,1737329470000,-504.7205971,0.00021985,2]
[349619678,1737329470009,-504.7205971,0.00021985,2]
[349619679,1737329470019,-504.7205971,0.00021985,2]
[349619680,1737329470028,-150.0,0.00021986,2]
[349619681,1737329470038,-150.0,0.00021989,2]
[349619682,1737329470051,-16090.4695093,0.0002199,14]
[349619683,1737329470060,-150.0,0.00021992,2]
[349619684,1737329470070,-150.0,0.00021994,2]
[349619685,1737329470080,-1000.0,0.00021995,2]
[349619686,1737329470089,-200.0,0.00021999,2]
[349619687,1737329470099,-500.0,0.00021999,2]
[349619688,1737329470111,-500.0,0.00021999,2]
[349619689,1737329470121,-150.0,0.00021999,2]
[349619690,1737329470131,-500.0,0.00021999,2]
[349619691,1737329470141,-992.5788782,0.00021999,2]
[349619692,1737329470150,-504.7205971,0.00021999,2]
[349619693,1737329470159,-153.357336,0.00021999,7]
[349619694,1737329470169,-401.87568064,0.00022,2]
[349619695,1737329470178,-241.12540838,0.00022,2]
[349619696,1737329470189,-160.75027226,0.00022,2]
[349619697,1737329470199,-1416.57010623,0.00022,2]
[349619698,1737329470208,-22655.54339791,0.00022,2]
[349619699,1737329470221,-4865.79896752,0.00022,2]